{"text_format":"1","workbook":"xlsx","n_sheets":4,"sheets":["Produktionsanlæg","Distributionsanlæg","Fællesfunktionsanlæg","Drop downliste"],"not_rendered":{"charts":0,"images":0,"macros":1,"external_links":0,"defined_names":2,"comments":0,"pivot_tables":0},"unopened":[],"bounds":{"document_bytes":16777216,"sheet_cells":100000,"rows_first":2000,"rows_last":500,"rows_between":2000,"halvings":0,"cell_chars":16384,"cell_head_chars":4096},"cells_cut":0,"cells_raw":0,"read":"whole","date_system":"1900"}

{"sheet":"Produktionsanlæg","index":0,"n_rows":562,"n_cols":6,"rows_kept":562,"cut":false,"hidden":false,"merged":[[0,5,1,5],[0,0,1,0],[0,1,1,1],[0,2,1,2],[0,3,1,3],[0,4,1,4]]}
["Produktionsanlæg","Enhed","Standard-levetid","Samlet mængde per 31/12-2014","Samlet mængde per 31/12-2015","Bemærk-ninger"]
[]
["Renseanlæg 1"]
["Mindre renseanlæg"]
["Mindre renseanlæg < 5.000 PE uden mulighed for opdeling","PE",40,0,{"$f":"+D5","v":0}]
["Renseanlæg >= 5.000 PE, Vandbehandling"]
["Indløb med riste, Konstruktioner","PE",60,32000,{"$f":"+D7","v":32000}]
["Indløb med riste, Mek/EL","PE",20,32000,{"$f":"+D8","v":32000}]
["Indløb med riste, SRO","PE",10,32000,32000]
["Sand- og fedtfang, Kontruktioner","PE",60,32000,32000]
["Sand- og fedtfang, Mek/EL","PE",20,32000,32000]
["Sand- og fedtfang, SRO","PE",10,32000,32000]
["Forklaring, Konstruktioner","PE",60,0,0]
["Forklaring, Mek/EL","PE",20,0,0]
["Forklaring, SRO","PE",10,0,0]
["Beluftningstanke, Konstruktioner","PE",60,35000,35000]
["Beluftningstanke, Mek/EL","PE",20,35000,35000]
["Beluftningstanke, SRO","PE",10,35000,35000]
["Efterklaringstanke, Konstruktioner","PE",60,32000,32000]
["Efterklaringstanke, Mek/El","PE",20,32000,32000]
["Efterklaringstanke, SRO","PE",10,32000,32000]
["Efterbehandlingsanlæg (sandfilter), Konstruktioner","PE",60,0,0]
["Efterbehandlingsanlæg (sandfilter), Mek/EL","PE",20,0,0]
["Efterbehandlingsanlæg (sandfilter), SRO","PE",10,0,0]
["Renseanlæg >= 5.000 PE, Slambehandling"]
["Forafvanding, slam, Konstruktion","PE",60,0,{"$f":"+D26","v":0}]
["Forafvanding, slam, Mek/EL","PE",20,0,{"$f":"+D27","v":0}]
["Forafvanding, slam, SRO","PE",10,0,0]
["Rådnetanke, slam, Konstruktioner","PE",60,0,0]
["Rådnetanke, slam, Mek/EL","PE",20,0,0]
["Rådnetanke, slam, SRO","PE",10,0,0]
["Gasdisponering, Konstruktioner","PE",60,0,0]
["Gasdisponering, Mek/EL","PE",20,0,0]
["Gasdisponering, SRO","PE",10,0,0]
["Gasdisponering - elproduktionsanlæg, Konstruktioner","PE",60,0,0]
["Gasdisponering - elproduktionsanlæg, Mek/EL","PE",20,0,0]
["Gasdisponering - elproduktionsanlæg, SRO","PE",10,0,0]
["Slutafvanding, slam - lavteknologisk (slambede), Konstruktioner","PE",60,0,0]
["Slutafvanding, slam - lavteknologisk (slambede), Mek/EL","PE",20,0,0]
["Slutafvanding, slam - lavteknologisk (slambede), SRO","PE",10,0,0]
["Slutafvanding, slam - højteknologisk (centrifuger), Konstruktioner","PE",60,{"$f":"32000","v":32000},32000]
["Slutafvanding, slam - højteknologisk (centrifuger), Mek/El","PE",20,32000,32000]
["Slutafvanding, slam - højteknologisk (centrifuger), SRO","PE",10,32000,32000]
["Renseanlæg >= 5.000 PE, Slamdisponering"]
["Slutdisponering, slam - lavteknologisk (slammineralisering), Konstruktioner","PE",60,0,{"$f":"+D45","v":0}]
["Slutdisponering, slam - lavteknologisk (slammineralisering), Mek/EL","PE",20,0,{"$f":"+D46","v":0}]
["Slutdisponering, slam - lavteknologisk (slammineralisering), SRO","PE",10,0,0]
["Slutdisponering, slam - højteknologisk (slamtørring), Konstruktioner","PE",60,0,0]
["Slutdisponering, slam - højteknologisk (slamtørring), Mek/EL","PE",20,0,0]
["Slutdisponering, slam - højteknologisk (slamtørring), SRO","PE",10,0,0]
["Slutdisponering, slam - højteknologisk (slamtørring og -forbrænding), Konstruktioner","PE",60,0,0]
["Slutdisponering, slam - højteknologisk (slamtørring og -forbrænding), Mek/EL","PE",20,0,0]
["Slutdisponering, slam - højteknologisk (slamtørring og -forbrænding), SRO","PE",10,0,0]
["Renseanlæg 2"]
["Mindre renseanlæg"]
["Mindre renseanlæg < 5.000 PE uden mulighed for opdeling","PE",40,0,{"$f":"+D56","v":0}]
["Renseanlæg >= 5.000 PE, Vandbehandling"]
["Indløb med riste, Konstruktioner","PE",60,23500,{"$f":"+D58","v":23500}]
["Indløb med riste, Mek/EL","PE",20,23500,{"$f":"+D59","v":23500}]
["Indløb med riste, SRO","PE",10,25000,25000]
["Sand- og fedtfang, Kontruktioner","PE",60,23500,23500]
["Sand- og fedtfang, Mek/EL","PE",20,23500,23500]
["Sand- og fedtfang, SRO","PE",10,23500,23500]
["Forklaring, Konstruktioner","PE",60,0,0]
["Forklaring, Mek/EL","PE",20,0,0]
["Forklaring, SRO","PE",10,0,0]
["Beluftningstanke, Konstruktioner","PE",60,25000,25000]
["Beluftningstanke, Mek/EL","PE",20,25000,25000]
["Beluftningstanke, SRO","PE",10,25000,25000]
["Efterklaringstanke, Konstruktioner","PE",60,23500,23500]
["Efterklaringstanke, Mek/El","PE",20,23500,23500]
["Efterklaringstanke, SRO","PE",10,23500,23500]
["Efterbehandlingsanlæg (sandfilter), Konstruktioner","PE",60,0,0]
["Efterbehandlingsanlæg (sandfilter), Mek/EL","PE",20,0,0]
["Efterbehandlingsanlæg (sandfilter), SRO","PE",10,0,0]
["Renseanlæg >= 5.000 PE, Slambehandling"]
["Forafvanding, slam, Konstruktion","PE",60,0,{"$f":"+D77","v":0}]
["Forafvanding, slam, Mek/EL","PE",20,0,{"$f":"+D78","v":0}]
["Forafvanding, slam, SRO","PE",10,0,0]
["Rådnetanke, slam, Konstruktioner","PE",60,0,0]
["Rådnetanke, slam, Mek/EL","PE",20,0,0]
["Rådnetanke, slam, SRO","PE",10,0,0]
["Gasdisponering, Konstruktioner","PE",60,0,0]
["Gasdisponering, Mek/EL","PE",20,0,0]
["Gasdisponering, SRO","PE",10,0,0]
["Gasdisponering - elproduktionsanlæg, Konstruktioner","PE",60,0,0]
["Gasdisponering - elproduktionsanlæg, Mek/EL","PE",20,0,0]
["Gasdisponering - elproduktionsanlæg, SRO","PE",10,0,0]
["Slutafvanding, slam - lavteknologisk (slambede), Konstruktioner","PE",60,23500,23500]
["Slutafvanding, slam - lavteknologisk (slambede), Mek/EL","PE",20,23500,23500]
["Slutafvanding, slam - lavteknologisk (slambede), SRO","PE",10,23500,23500]
["Slutafvanding, slam - højteknologisk (centrifuger), Konstruktioner","PE",60,0,0]
["Slutafvanding, slam - højteknologisk (centrifuger), Mek/El","PE",20,0,0]
["Slutafvanding, slam - højteknologisk (centrifuger), SRO","PE",10,0,0]
["Renseanlæg >= 5.000 PE, Slamdisponering"]
["Slutdisponering, slam - lavteknologisk (slammineralisering), Konstruktioner","PE",60,23500,{"$f":"+D96","v":23500}]
["Slutdisponering, slam - lavteknologisk (slammineralisering), Mek/EL","PE",20,23500,{"$f":"+D97","v":23500}]
["Slutdisponering, slam - lavteknologisk (slammineralisering), SRO","PE",10,23500,23500]
["Slutdisponering, slam - højteknologisk (slamtørring), Konstruktioner","PE",60,0,0]
["Slutdisponering, slam - højteknologisk (slamtørring), Mek/EL","PE",20,0,0]
["Slutdisponering, slam - højteknologisk (slamtørring), SRO","PE",10,0,0]
["Slutdisponering, slam - højteknologisk (slamtørring og -forbrænding), Konstruktioner","PE",60,0,0]
["Slutdisponering, slam - højteknologisk (slamtørring og -forbrænding), Mek/EL","PE",20,0,0]
["Slutdisponering, slam - højteknologisk (slamtørring og -forbrænding), SRO","PE",10,0,0]
["Renseanlæg 3"]
["Mindre renseanlæg"]
["Mindre renseanlæg < 5.000 PE uden mulighed for opdeling","PE",40,0,0]
["Renseanlæg >= 5.000 PE, Vandbehandling"]
["Indløb med riste, Konstruktioner","PE",60,11000,11000]
["Indløb med riste, Mek/EL","PE",20,11000,11000]
["Indløb med riste, SRO","PE",10,11000,11000]
["Sand- og fedtfang, Kontruktioner","PE",60,11000,11000]
["Sand- og fedtfang, Mek/EL","PE",20,11000,11000]
["Sand- og fedtfang, SRO","PE",10,11000,11000]
["Forklaring, Konstruktioner","PE",60,0,0]
["Forklaring, Mek/EL","PE",20,0,0]
["Forklaring, SRO","PE",10,0,0]
["Beluftningstanke, Konstruktioner","PE",60,11000,11000]
["Beluftningstanke, Mek/EL","PE",20,11000,11000]
["Beluftningstanke, SRO","PE",10,11000,11000]
["Efterklaringstanke, Konstruktioner","PE",60,11000,11000]
["Efterklaringstanke, Mek/El","PE",20,11000,11000]
["Efterklaringstanke, SRO","PE",10,11000,11000]
["Efterbehandlingsanlæg (sandfilter), Konstruktioner","PE",60,0,0]
["Efterbehandlingsanlæg (sandfilter), Mek/EL","PE",20,0,0]
["Efterbehandlingsanlæg (sandfilter), SRO","PE",10,0,0]
["Renseanlæg >= 5.000 PE, Slambehandling"]
["Forafvanding, slam, Konstruktion","PE",60,0,0]
["Forafvanding, slam, Mek/EL","PE",20,0,0]
["Forafvanding, slam, SRO","PE",10,0,0]
["Rådnetanke, slam, Konstruktioner","PE",60,0,0]
["Rådnetanke, slam, Mek/EL","PE",20,0,0]
["Rådnetanke, slam, SRO","PE",10,0,0]
["Gasdisponering, Konstruktioner","PE",60,0,0]
["Gasdisponering, Mek/EL","PE",20,0,0]
["Gasdisponering, SRO","PE",10,0,0]
["Gasdisponering - elproduktionsanlæg, Konstruktioner","PE",60,0,0]
["Gasdisponering - elproduktionsanlæg, Mek/EL","PE",20,0,0]
["Gasdisponering - elproduktionsanlæg, SRO","PE",10,0,0]
["Slutafvanding, slam - lavteknologisk (slambede), Konstruktioner","PE",60,0,0]
["Slutafvanding, slam - lavteknologisk (slambede), Mek/EL","PE",20,0,0]
["Slutafvanding, slam - lavteknologisk (slambede), SRO","PE",10,0,0]
["Slutafvanding, slam - højteknologisk (centrifuger), Konstruktioner","PE",60,0,0]
["Slutafvanding, slam - højteknologisk (centrifuger), Mek/El","PE",20,0,0]
["Slutafvanding, slam - højteknologisk (centrifuger), SRO","PE",10,0,0]
["Renseanlæg >= 5.000 PE, Slamdisponering"]
["Slutdisponering, slam - lavteknologisk (slammineralisering), Konstruktioner","PE",60,0,0]
["Slutdisponering, slam - lavteknologisk (slammineralisering), Mek/EL","PE",20,0,0]
["Slutdisponering, slam - lavteknologisk (slammineralisering), SRO","PE",10,0,0]
["Slutdisponering, slam - højteknologisk (slamtørring), Konstruktioner","PE",60,0,0]
["Slutdisponering, slam - højteknologisk (slamtørring), Mek/EL","PE",20,0,0]
["Slutdisponering, slam - højteknologisk (slamtørring), SRO","PE",10,0,0]
["Slutdisponering, slam - højteknologisk (slamtørring og -forbrænding), Konstruktioner","PE",60,0,0]
["Slutdisponering, slam - højteknologisk (slamtørring og -forbrænding), Mek/EL","PE",20,0,0]
["Slutdisponering, slam - højteknologisk (slamtørring og -forbrænding), SRO","PE",10,0,0]
["Renseanlæg 4"]
["Mindre renseanlæg"]
["Mindre renseanlæg < 5.000 PE uden mulighed for opdeling","PE",40,0,0]
["Renseanlæg >= 5.000 PE, Vandbehandling"]
["Indløb med riste, Konstruktioner","PE",60,9100,9100]
["Indløb med riste, Mek/EL","PE",20,9100,{"$f":"+D161","v":9100}]
["Indløb med riste, SRO","PE",10,9100,9100]
["Sand- og fedtfang, Kontruktioner","PE",60,9100,9100]
["Sand- og fedtfang, Mek/EL","PE",20,9100,9100]
["Sand- og fedtfang, SRO","PE",10,9100,9100]
["Forklaring, Konstruktioner","PE",60,0,0]
["Forklaring, Mek/EL","PE",20,0,0]
["Forklaring, SRO","PE",10,0,0]
["Beluftningstanke, Konstruktioner","PE",60,9100,9100]
["Beluftningstanke, Mek/EL","PE",20,9100,9100]
["Beluftningstanke, SRO","PE",10,9100,9100]
["Efterklaringstanke, Konstruktioner","PE",60,9100,9100]
["Efterklaringstanke, Mek/El","PE",20,9100,9100]
["Efterklaringstanke, SRO","PE",10,9100,9100]
["Efterbehandlingsanlæg (sandfilter), Konstruktioner","PE",60,0,0]
["Efterbehandlingsanlæg (sandfilter), Mek/EL","PE",20,0,0]
["Efterbehandlingsanlæg (sandfilter), SRO","PE",10,0,0]
["Renseanlæg >= 5.000 PE, Slambehandling"]
["Forafvanding, slam, Konstruktion","PE",60,0,0]
["Forafvanding, slam, Mek/EL","PE",20,0,0]
["Forafvanding, slam, SRO","PE",10,0,0]
["Rådnetanke, slam, Konstruktioner","PE",60,0,0]
["Rådnetanke, slam, Mek/EL","PE",20,0,0]
["Rådnetanke, slam, SRO","PE",10,0,0]
["Gasdisponering, Konstruktioner","PE",60,0,0]
["Gasdisponering, Mek/EL","PE",20,0,0]
["Gasdisponering, SRO","PE",10,0,0]
["Gasdisponering - elproduktionsanlæg, Konstruktioner","PE",60,0,0]
["Gasdisponering - elproduktionsanlæg, Mek/EL","PE",20,0,0]
["Gasdisponering - elproduktionsanlæg, SRO","PE",10,0,0]
["Slutafvanding, slam - lavteknologisk (slambede), Konstruktioner","PE",60,0,0]
["Slutafvanding, slam - lavteknologisk (slambede), Mek/EL","PE",20,0,0]
["Slutafvanding, slam - lavteknologisk (slambede), SRO","PE",10,0,0]
["Slutafvanding, slam - højteknologisk (centrifuger), Konstruktioner","PE",60,0,0]
["Slutafvanding, slam - højteknologisk (centrifuger), Mek/El","PE",20,0,0]
["Slutafvanding, slam - højteknologisk (centrifuger), SRO","PE",10,0,0]
["Renseanlæg >= 5.000 PE, Slamdisponering"]
["Slutdisponering, slam - lavteknologisk (slammineralisering), Konstruktioner","PE",60,0,0]
["Slutdisponering, slam - lavteknologisk (slammineralisering), Mek/EL","PE",20,0,0]
["Slutdisponering, slam - lavteknologisk (slammineralisering), SRO","PE",10,0,0]
["Slutdisponering, slam - højteknologisk (slamtørring), Konstruktioner","PE",60,0,0]
["Slutdisponering, slam - højteknologisk (slamtørring), Mek/EL","PE",20,0,0]
["Slutdisponering, slam - højteknologisk (slamtørring), SRO","PE",10,0,0]
["Slutdisponering, slam - højteknologisk (slamtørring og -forbrænding), Konstruktioner","PE",60,0,0]
["Slutdisponering, slam - højteknologisk (slamtørring og -forbrænding), Mek/EL","PE",20,0,0]
["Slutdisponering, slam - højteknologisk (slamtørring og -forbrænding), SRO","PE",10,0,0]
["Renseanlæg 5"]
["Mindre renseanlæg"]
["Mindre renseanlæg < 5.000 PE uden mulighed for opdeling","PE",40,0,0]
["Renseanlæg >= 5.000 PE, Vandbehandling"]
["Indløb med riste, Konstruktioner","PE",60,7000,7000]
["Indløb med riste, Mek/EL","PE",20,7000,7000]
["Indløb med riste, SRO","PE",10,7000,7000]
["Sand- og fedtfang, Kontruktioner","PE",60,7000,7000]
["Sand- og fedtfang, Mek/EL","PE",20,7000,7000]
["Sand- og fedtfang, SRO","PE",10,7000,7000]
["Forklaring, Konstruktioner","PE",60,0,0]
["Forklaring, Mek/EL","PE",20,0,0]
["Forklaring, SRO","PE",10,0,0]
["Beluftningstanke, Konstruktioner","PE",60,4500,4500]
["Beluftningstanke, Mek/EL","PE",20,4500,4500]
["Beluftningstanke, SRO","PE",10,4500,4500]
["Efterklaringstanke, Konstruktioner","PE",60,4500,4500]
["Efterklaringstanke, Mek/El","PE",20,4500,4500]
["Efterklaringstanke, SRO","PE",10,4500,{"$f":"+D225","v":4500}]
["Efterbehandlingsanlæg (sandfilter), Konstruktioner","PE",60,0,0]
["Efterbehandlingsanlæg (sandfilter), Mek/EL","PE",20,0,0]
["Efterbehandlingsanlæg (sandfilter), SRO","PE",10,0,0]
["Renseanlæg >= 5.000 PE, Slambehandling"]
["Forafvanding, slam, Konstruktion","PE",60,0,0]
["Forafvanding, slam, Mek/EL","PE",20,0,0]
["Forafvanding, slam, SRO","PE",10,0,0]
["Rådnetanke, slam, Konstruktioner","PE",60,0,0]
["Rådnetanke, slam, Mek/EL","PE",20,0,0]
["Rådnetanke, slam, SRO","PE",10,0,0]
["Gasdisponering, Konstruktioner","PE",60,0,0]
["Gasdisponering, Mek/EL","PE",20,0,0]
["Gasdisponering, SRO","PE",10,0,0]
["Gasdisponering - elproduktionsanlæg, Konstruktioner","PE",60,0,0]
["Gasdisponering - elproduktionsanlæg, Mek/EL","PE",20,0,0]
["Gasdisponering - elproduktionsanlæg, SRO","PE",10,0,0]
["Slutafvanding, slam - lavteknologisk (slambede), Konstruktioner","PE",60,0,0]
["Slutafvanding, slam - lavteknologisk (slambede), Mek/EL","PE",20,0,0]
["Slutafvanding, slam - lavteknologisk (slambede), SRO","PE",10,0,0]
["Slutafvanding, slam - højteknologisk (centrifuger), Konstruktioner","PE",60,0,0]
["Slutafvanding, slam - højteknologisk (centrifuger), Mek/El","PE",20,0,0]
["Slutafvanding, slam - højteknologisk (centrifuger), SRO","PE",10,0,0]
["Renseanlæg >= 5.000 PE, Slamdisponering"]
["Slutdisponering, slam - lavteknologisk (slammineralisering), Konstruktioner","PE",60,0,0]
["Slutdisponering, slam - lavteknologisk (slammineralisering), Mek/EL","PE",20,0,0]
["Slutdisponering, slam - lavteknologisk (slammineralisering), SRO","PE",10,0,0]
["Slutdisponering, slam - højteknologisk (slamtørring), Konstruktioner","PE",60,0,0]
["Slutdisponering, slam - højteknologisk (slamtørring), Mek/EL","PE",20,0,0]
["Slutdisponering, slam - højteknologisk (slamtørring), SRO","PE",10,0,0]
["Slutdisponering, slam - højteknologisk (slamtørring og -forbrænding), Konstruktioner","PE",60,0,0]
["Slutdisponering, slam - højteknologisk (slamtørring og -forbrænding), Mek/EL","PE",20,0,0]
["Slutdisponering, slam - højteknologisk (slamtørring og -forbrænding), SRO","PE",10,0,0]
["Renseanlæg 6"]
["Mindre renseanlæg"]
["Mindre renseanlæg < 5.000 PE uden mulighed for opdeling","PE",40,4000,4000]
["Renseanlæg >= 5.000 PE, Vandbehandling"]
["Indløb med riste, Konstruktioner","PE",60,0,0]
["Indløb med riste, Mek/EL","PE",20,0,0]
["Indløb med riste, SRO","PE",10,0,0]
["Sand- og fedtfang, Kontruktioner","PE",60,0,0]
["Sand- og fedtfang, Mek/EL","PE",20,0,0]
["Sand- og fedtfang, SRO","PE",10,0,0]
["Forklaring, Konstruktioner","PE",60,0,0]
["Forklaring, Mek/EL","PE",20,0,0]
["Forklaring, SRO","PE",10,0,0]
["Beluftningstanke, Konstruktioner","PE",60,0,0]
["Beluftningstanke, Mek/EL","PE",20,0,0]
["Beluftningstanke, SRO","PE",10,0,0]
["Efterklaringstanke, Konstruktioner","PE",60,0,0]
["Efterklaringstanke, Mek/El","PE",20,0,0]
["Efterklaringstanke, SRO","PE",10,0,0]
["Efterbehandlingsanlæg (sandfilter), Konstruktioner","PE",60,0,0]
["Efterbehandlingsanlæg (sandfilter), Mek/EL","PE",20,0,0]
["Efterbehandlingsanlæg (sandfilter), SRO","PE",10,0,0]
["Renseanlæg >= 5.000 PE, Slambehandling"]
["Forafvanding, slam, Konstruktion","PE",60,0,0]
["Forafvanding, slam, Mek/EL","PE",20,0,0]
["Forafvanding, slam, SRO","PE",10,0,0]
["Rådnetanke, slam, Konstruktioner","PE",60,0,0]
["Rådnetanke, slam, Mek/EL","PE",20,0,0]
["Rådnetanke, slam, SRO","PE",10,0,0]
["Gasdisponering, Konstruktioner","PE",60,0,0]
["Gasdisponering, Mek/EL","PE",20,0,0]
["Gasdisponering, SRO","PE",10,0,{"$f":"+D289","v":0}]
["Gasdisponering - elproduktionsanlæg, Konstruktioner","PE",60,0,0]
["Gasdisponering - elproduktionsanlæg, Mek/EL","PE",20,0,0]
["Gasdisponering - elproduktionsanlæg, SRO","PE",10,0,0]
["Slutafvanding, slam - lavteknologisk (slambede), Konstruktioner","PE",60,0,0]
["Slutafvanding, slam - lavteknologisk (slambede), Mek/EL","PE",20,0,0]
["Slutafvanding, slam - lavteknologisk (slambede), SRO","PE",10,0,0]
["Slutafvanding, slam - højteknologisk (centrifuger), Konstruktioner","PE",60,0,0]
["Slutafvanding, slam - højteknologisk (centrifuger), Mek/El","PE",20,0,0]
["Slutafvanding, slam - højteknologisk (centrifuger), SRO","PE",10,0,0]
["Renseanlæg >= 5.000 PE, Slamdisponering"]
["Slutdisponering, slam - lavteknologisk (slammineralisering), Konstruktioner","PE",60,0,0]
["Slutdisponering, slam - lavteknologisk (slammineralisering), Mek/EL","PE",20,0,0]
["Slutdisponering, slam - lavteknologisk (slammineralisering), SRO","PE",10,0,0]
["Slutdisponering, slam - højteknologisk (slamtørring), Konstruktioner","PE",60,0,0]
["Slutdisponering, slam - højteknologisk (slamtørring), Mek/EL","PE",20,0,0]
["Slutdisponering, slam - højteknologisk (slamtørring), SRO","PE",10,0,0]
["Slutdisponering, slam - højteknologisk (slamtørring og -forbrænding), Konstruktioner","PE",60,0,0]
["Slutdisponering, slam - højteknologisk (slamtørring og -forbrænding), Mek/EL","PE",20,0,0]
["Slutdisponering, slam - højteknologisk (slamtørring og -forbrænding), SRO","PE",10,0,0]
["Renseanlæg 7"]
["Mindre renseanlæg"]
["Mindre renseanlæg < 5.000 PE uden mulighed for opdeling","PE",40,3000,3000]
["Renseanlæg >= 5.000 PE, Vandbehandling"]
["Indløb med riste, Konstruktioner","PE",60,0,0]
["Indløb med riste, Mek/EL","PE",20,0,0]
["Indløb med riste, SRO","PE",10,0,0]
["Sand- og fedtfang, Kontruktioner","PE",60,0,0]
["Sand- og fedtfang, Mek/EL","PE",20,0,0]
["Sand- og fedtfang, SRO","PE",10,0,0]
["Forklaring, Konstruktioner","PE",60,0,0]
["Forklaring, Mek/EL","PE",20,0,0]
["Forklaring, SRO","PE",10,0,0]
["Beluftningstanke, Konstruktioner","PE",60,0,0]
["Beluftningstanke, Mek/EL","PE",20,0,0]
["Beluftningstanke, SRO","PE",10,0,0]
["Efterklaringstanke, Konstruktioner","PE",60,0,0]
["Efterklaringstanke, Mek/El","PE",20,0,0]
["Efterklaringstanke, SRO","PE",10,0,0]
["Efterbehandlingsanlæg (sandfilter), Konstruktioner","PE",60,0,0]
["Efterbehandlingsanlæg (sandfilter), Mek/EL","PE",20,0,0]
["Efterbehandlingsanlæg (sandfilter), SRO","PE",10,0,0]
["Renseanlæg >= 5.000 PE, Slambehandling"]
["Forafvanding, slam, Konstruktion","PE",60,0,0]
["Forafvanding, slam, Mek/EL","PE",20,0,0]
["Forafvanding, slam, SRO","PE",10,0,0]
["Rådnetanke, slam, Konstruktioner","PE",60,0,0]
["Rådnetanke, slam, Mek/EL","PE",20,0,0]
["Rådnetanke, slam, SRO","PE",10,0,0]
["Gasdisponering, Konstruktioner","PE",60,0,0]
["Gasdisponering, Mek/EL","PE",20,0,0]
["Gasdisponering, SRO","PE",10,0,0]
["Gasdisponering - elproduktionsanlæg, Konstruktioner","PE",60,0,0]
["Gasdisponering - elproduktionsanlæg, Mek/EL","PE",20,0,0]
["Gasdisponering - elproduktionsanlæg, SRO","PE",10,0,0]
["Slutafvanding, slam - lavteknologisk (slambede), Konstruktioner","PE",60,0,0]
["Slutafvanding, slam - lavteknologisk (slambede), Mek/EL","PE",20,0,0]
["Slutafvanding, slam - lavteknologisk (slambede), SRO","PE",10,0,0]
["Slutafvanding, slam - højteknologisk (centrifuger), Konstruktioner","PE",60,0,0]
["Slutafvanding, slam - højteknologisk (centrifuger), Mek/El","PE",20,0,0]
["Slutafvanding, slam - højteknologisk (centrifuger), SRO","PE",10,0,0]
["Renseanlæg >= 5.000 PE, Slamdisponering"]
["Slutdisponering, slam - lavteknologisk (slammineralisering), Konstruktioner","PE",60,0,0]
["Slutdisponering, slam - lavteknologisk (slammineralisering), Mek/EL","PE",20,0,0]
["Slutdisponering, slam - lavteknologisk (slammineralisering), SRO","PE",10,0,{"$f":"+D353","v":0}]
["Slutdisponering, slam - højteknologisk (slamtørring), Konstruktioner","PE",60,0,0]
["Slutdisponering, slam - højteknologisk (slamtørring), Mek/EL","PE",20,0,0]
["Slutdisponering, slam - højteknologisk (slamtørring), SRO","PE",10,0,0]
["Slutdisponering, slam - højteknologisk (slamtørring og -forbrænding), Konstruktioner","PE",60,0,0]
["Slutdisponering, slam - højteknologisk (slamtørring og -forbrænding), Mek/EL","PE",20,0,0]
["Slutdisponering, slam - højteknologisk (slamtørring og -forbrænding), SRO","PE",10,0,0]
["Renseanlæg 8"]
["Mindre renseanlæg"]
["Mindre renseanlæg < 5.000 PE uden mulighed for opdeling","PE",40,3000,3000]
["Renseanlæg >= 5.000 PE, Vandbehandling"]
["Indløb med riste, Konstruktioner","PE",60,0,0]
["Indløb med riste, Mek/EL","PE",20,0,0]
["Indløb med riste, SRO","PE",10,0,0]
["Sand- og fedtfang, Kontruktioner","PE",60,0,0]
["Sand- og fedtfang, Mek/EL","PE",20,0,0]
["Sand- og fedtfang, SRO","PE",10,0,0]
["Forklaring, Konstruktioner","PE",60,0,0]
["Forklaring, Mek/EL","PE",20,0,0]
["Forklaring, SRO","PE",10,0,0]
["Beluftningstanke, Konstruktioner","PE",60,0,0]
["Beluftningstanke, Mek/EL","PE",20,0,0]
["Beluftningstanke, SRO","PE",10,0,0]
["Efterklaringstanke, Konstruktioner","PE",60,0,0]
["Efterklaringstanke, Mek/El","PE",20,0,0]
["Efterklaringstanke, SRO","PE",10,0,0]
["Efterbehandlingsanlæg (sandfilter), Konstruktioner","PE",60,0,0]
["Efterbehandlingsanlæg (sandfilter), Mek/EL","PE",20,0,0]
["Efterbehandlingsanlæg (sandfilter), SRO","PE",10,0,0]
["Renseanlæg >= 5.000 PE, Slambehandling"]
["Forafvanding, slam, Konstruktion","PE",60,0,0]
["Forafvanding, slam, Mek/EL","PE",20,0,0]
["Forafvanding, slam, SRO","PE",10,0,0]
["Rådnetanke, slam, Konstruktioner","PE",60,0,0]
["Rådnetanke, slam, Mek/EL","PE",20,0,0]
["Rådnetanke, slam, SRO","PE",10,0,0]
["Gasdisponering, Konstruktioner","PE",60,0,0]
["Gasdisponering, Mek/EL","PE",20,0,0]
["Gasdisponering, SRO","PE",10,0,0]
["Gasdisponering - elproduktionsanlæg, Konstruktioner","PE",60,0,0]
["Gasdisponering - elproduktionsanlæg, Mek/EL","PE",20,0,0]
["Gasdisponering - elproduktionsanlæg, SRO","PE",10,0,0]
["Slutafvanding, slam - lavteknologisk (slambede), Konstruktioner","PE",60,0,0]
["Slutafvanding, slam - lavteknologisk (slambede), Mek/EL","PE",20,0,0]
["Slutafvanding, slam - lavteknologisk (slambede), SRO","PE",10,0,0]
["Slutafvanding, slam - højteknologisk (centrifuger), Konstruktioner","PE",60,0,0]
["Slutafvanding, slam - højteknologisk (centrifuger), Mek/El","PE",20,0,0]
["Slutafvanding, slam - højteknologisk (centrifuger), SRO","PE",10,0,0]
["Renseanlæg >= 5.000 PE, Slamdisponering"]
["Slutdisponering, slam - lavteknologisk (slammineralisering), Konstruktioner","PE",60,0,0]
["Slutdisponering, slam - lavteknologisk (slammineralisering), Mek/EL","PE",20,0,0]
["Slutdisponering, slam - lavteknologisk (slammineralisering), SRO","PE",10,0,0]
["Slutdisponering, slam - højteknologisk (slamtørring), Konstruktioner","PE",60,0,0]
["Slutdisponering, slam - højteknologisk (slamtørring), Mek/EL","PE",20,0,0]
["Slutdisponering, slam - højteknologisk (slamtørring), SRO","PE",10,0,0]
["Slutdisponering, slam - højteknologisk (slamtørring og -forbrænding), Konstruktioner","PE",60,0,0]
["Slutdisponering, slam - højteknologisk (slamtørring og -forbrænding), Mek/EL","PE",20,0,0]
["Slutdisponering, slam - højteknologisk (slamtørring og -forbrænding), SRO","PE",10,0,0]
["Renseanlæg 9"]
["Mindre renseanlæg"]
["Mindre renseanlæg < 5.000 PE uden mulighed for opdeling","PE",40,2400,0,"anlægget er nedlagt feb 2015"]
["Renseanlæg >= 5.000 PE, Vandbehandling"]
["Indløb med riste, Konstruktioner","PE",60,0,0]
["Indløb med riste, Mek/EL","PE",20,0,0]
["Indløb med riste, SRO","PE",10,0,{"$f":"+D417","v":0}]
["Sand- og fedtfang, Kontruktioner","PE",60,0,0]
["Sand- og fedtfang, Mek/EL","PE",20,0,0]
["Sand- og fedtfang, SRO","PE",10,0,0]
["Forklaring, Konstruktioner","PE",60,0,0]
["Forklaring, Mek/EL","PE",20,0,0]
["Forklaring, SRO","PE",10,0,0]
["Beluftningstanke, Konstruktioner","PE",60,0,0]
["Beluftningstanke, Mek/EL","PE",20,0,0]
["Beluftningstanke, SRO","PE",10,0,0]
["Efterklaringstanke, Konstruktioner","PE",60,0,0]
["Efterklaringstanke, Mek/El","PE",20,0,0]
["Efterklaringstanke, SRO","PE",10,0,0]
["Efterbehandlingsanlæg (sandfilter), Konstruktioner","PE",60,0,0]
["Efterbehandlingsanlæg (sandfilter), Mek/EL","PE",20,0,0]
["Efterbehandlingsanlæg (sandfilter), SRO","PE",10,0,0]
["Renseanlæg >= 5.000 PE, Slambehandling"]
["Forafvanding, slam, Konstruktion","PE",60,0,0]
["Forafvanding, slam, Mek/EL","PE",20,0,0]
["Forafvanding, slam, SRO","PE",10,0,0]
["Rådnetanke, slam, Konstruktioner","PE",60,0,0]
["Rådnetanke, slam, Mek/EL","PE",20,0,0]
["Rådnetanke, slam, SRO","PE",10,0,0]
["Gasdisponering, Konstruktioner","PE",60,0,0]
["Gasdisponering, Mek/EL","PE",20,0,0]
["Gasdisponering, SRO","PE",10,0,0]
["Gasdisponering - elproduktionsanlæg, Konstruktioner","PE",60,0,0]
["Gasdisponering - elproduktionsanlæg, Mek/EL","PE",20,0,0]
["Gasdisponering - elproduktionsanlæg, SRO","PE",10,0,0]
["Slutafvanding, slam - lavteknologisk (slambede), Konstruktioner","PE",60,0,0]
["Slutafvanding, slam - lavteknologisk (slambede), Mek/EL","PE",20,0,0]
["Slutafvanding, slam - lavteknologisk (slambede), SRO","PE",10,0,0]
["Slutafvanding, slam - højteknologisk (centrifuger), Konstruktioner","PE",60,0,0]
["Slutafvanding, slam - højteknologisk (centrifuger), Mek/El","PE",20,0,0]
["Slutafvanding, slam - højteknologisk (centrifuger), SRO","PE",10,0,0]
["Renseanlæg >= 5.000 PE, Slamdisponering"]
["Slutdisponering, slam - lavteknologisk (slammineralisering), Konstruktioner","PE",60,0,0]
["Slutdisponering, slam - lavteknologisk (slammineralisering), Mek/EL","PE",20,0,0]
["Slutdisponering, slam - lavteknologisk (slammineralisering), SRO","PE",10,0,0]
["Slutdisponering, slam - højteknologisk (slamtørring), Konstruktioner","PE",60,0,0]
["Slutdisponering, slam - højteknologisk (slamtørring), Mek/EL","PE",20,0,0]
["Slutdisponering, slam - højteknologisk (slamtørring), SRO","PE",10,0,0]
["Slutdisponering, slam - højteknologisk (slamtørring og -forbrænding), Konstruktioner","PE",60,0,0]
["Slutdisponering, slam - højteknologisk (slamtørring og -forbrænding), Mek/EL","PE",20,0,0]
["Slutdisponering, slam - højteknologisk (slamtørring og -forbrænding), SRO","PE",10,0,0]
["Renseanlæg 10"]
["Mindre renseanlæg"]
["Mindre renseanlæg < 5.000 PE uden mulighed for opdeling","PE",40,1000,0,"Anlægget er nedlagt okt 2013"]
["Renseanlæg >= 5.000 PE, Vandbehandling"]
["Indløb med riste, Konstruktioner","PE",60,0,0]
["Indløb med riste, Mek/EL","PE",20,0,0]
["Indløb med riste, SRO","PE",10,0,0]
["Sand- og fedtfang, Kontruktioner","PE",60,0,0]
["Sand- og fedtfang, Mek/EL","PE",20,0,0]
["Sand- og fedtfang, SRO","PE",10,0,0]
["Forklaring, Konstruktioner","PE",60,0,0]
["Forklaring, Mek/EL","PE",20,0,0]
["Forklaring, SRO","PE",10,0,0]
["Beluftningstanke, Konstruktioner","PE",60,0,0]
["Beluftningstanke, Mek/EL","PE",20,0,0]
["Beluftningstanke, SRO","PE",10,0,0]
["Efterklaringstanke, Konstruktioner","PE",60,0,0]
["Efterklaringstanke, Mek/El","PE",20,0,0]
["Efterklaringstanke, SRO","PE",10,0,0]
["Efterbehandlingsanlæg (sandfilter), Konstruktioner","PE",60,0,{"$f":"+D481","v":0}]
["Efterbehandlingsanlæg (sandfilter), Mek/EL","PE",20,0,0]
["Efterbehandlingsanlæg (sandfilter), SRO","PE",10,0,0]
["Renseanlæg >= 5.000 PE, Slambehandling"]
["Forafvanding, slam, Konstruktion","PE",60,0,0]
["Forafvanding, slam, Mek/EL","PE",20,0,0]
["Forafvanding, slam, SRO","PE",10,0,0]
["Rådnetanke, slam, Konstruktioner","PE",60,0,0]
["Rådnetanke, slam, Mek/EL","PE",20,0,0]
["Rådnetanke, slam, SRO","PE",10,0,0]
["Gasdisponering, Konstruktioner","PE",60,0,0]
["Gasdisponering, Mek/EL","PE",20,0,0]
["Gasdisponering, SRO","PE",10,0,0]
["Gasdisponering - elproduktionsanlæg, Konstruktioner","PE",60,0,0]
["Gasdisponering - elproduktionsanlæg, Mek/EL","PE",20,0,0]
["Gasdisponering - elproduktionsanlæg, SRO","PE",10,0,0]
["Slutafvanding, slam - lavteknologisk (slambede), Konstruktioner","PE",60,0,0]
["Slutafvanding, slam - lavteknologisk (slambede), Mek/EL","PE",20,0,0]
["Slutafvanding, slam - lavteknologisk (slambede), SRO","PE",10,0,0]
["Slutafvanding, slam - højteknologisk (centrifuger), Konstruktioner","PE",60,0,0]
["Slutafvanding, slam - højteknologisk (centrifuger), Mek/El","PE",20,0,0]
["Slutafvanding, slam - højteknologisk (centrifuger), SRO","PE",10,0,0]
["Renseanlæg >= 5.000 PE, Slamdisponering"]
["Slutdisponering, slam - lavteknologisk (slammineralisering), Konstruktioner","PE",60,0,0]
["Slutdisponering, slam - lavteknologisk (slammineralisering), Mek/EL","PE",20,0,0]
["Slutdisponering, slam - lavteknologisk (slammineralisering), SRO","PE",10,0,0]
["Slutdisponering, slam - højteknologisk (slamtørring), Konstruktioner","PE",60,0,0]
["Slutdisponering, slam - højteknologisk (slamtørring), Mek/EL","PE",20,0,0]
["Slutdisponering, slam - højteknologisk (slamtørring), SRO","PE",10,0,0]
["Slutdisponering, slam - højteknologisk (slamtørring og -forbrænding), Konstruktioner","PE",60,0,0]
["Slutdisponering, slam - højteknologisk (slamtørring og -forbrænding), Mek/EL","PE",20,0,0]
["Slutdisponering, slam - højteknologisk (slamtørring og -forbrænding), SRO","PE",10,0,0]
["Mindre renseanlæg"]
["Mindre renseanlæg < 5.000 PE uden mulighed for opdeling","PE",40,30,30,"Minirenseanlæg, Hostrup"]
["Renseanlæg >= 5.000 PE, Vandbehandling"]
["Indløb med riste, Konstruktioner","PE",60,0,0]
["Indløb med riste, Mek/EL","PE",20,0,0]
["Indløb med riste, SRO","PE",10,0,0]
["Sand- og fedtfang, Kontruktioner","PE",60,0,0]
["Sand- og fedtfang, Mek/EL","PE",20,0,0]
["Sand- og fedtfang, SRO","PE",10,0,0]
["Forklaring, Konstruktioner","PE",60,0,0]
["Forklaring, Mek/EL","PE",20,0,0]
["Forklaring, SRO","PE",10,0,0]
["Beluftningstanke, Konstruktioner","PE",60,0,0]
["Beluftningstanke, Mek/EL","PE",20,0,0]
["Beluftningstanke, SRO","PE",10,0,0]
["Efterklaringstanke, Konstruktioner","PE",60,0,0]
["Efterklaringstanke, Mek/El","PE",20,0,0]
["Efterklaringstanke, SRO","PE",10,0,0]
["Efterbehandlingsanlæg (sandfilter), Konstruktioner","PE",60,0,0]
["Efterbehandlingsanlæg (sandfilter), Mek/EL","PE",20,0,0]
["Efterbehandlingsanlæg (sandfilter), SRO","PE",10,0,0]
["Renseanlæg >= 5.000 PE, Slambehandling"]
["Forafvanding, slam, Konstruktion","PE",60,0,0]
["Forafvanding, slam, Mek/EL","PE",20,0,0]
["Forafvanding, slam, SRO","PE",10,0,0]
["Rådnetanke, slam, Konstruktioner","PE",60,0,0]
["Rådnetanke, slam, Mek/EL","PE",20,0,0]
["Rådnetanke, slam, SRO","PE",10,0,0]
["Gasdisponering, Konstruktioner","PE",60,0,0]
["Gasdisponering, Mek/EL","PE",20,0,0]
["Gasdisponering, SRO","PE",10,0,0]
["Gasdisponering - elproduktionsanlæg, Konstruktioner","PE",60,0,0]
["Gasdisponering - elproduktionsanlæg, Mek/EL","PE",20,0,{"$f":"+D545","v":0}]
["Gasdisponering - elproduktionsanlæg, SRO","PE",10,0,0]
["Slutafvanding, slam - lavteknologisk (slambede), Konstruktioner","PE",60,0,0]
["Slutafvanding, slam - lavteknologisk (slambede), Mek/EL","PE",20,0,0]
["Slutafvanding, slam - lavteknologisk (slambede), SRO","PE",10,0,0]
["Slutafvanding, slam - højteknologisk (centrifuger), Konstruktioner","PE",60,0,0]
["Slutafvanding, slam - højteknologisk (centrifuger), Mek/El","PE",20,0,0]
["Slutafvanding, slam - højteknologisk (centrifuger), SRO","PE",10,0,0]
["Renseanlæg >= 5.000 PE, Slamdisponering"]
["Slutdisponering, slam - lavteknologisk (slammineralisering), Konstruktioner","PE",60,0,0]
["Slutdisponering, slam - lavteknologisk (slammineralisering), Mek/EL","PE",20,0,0]
["Slutdisponering, slam - lavteknologisk (slammineralisering), SRO","PE",10,0,0]
["Slutdisponering, slam - højteknologisk (slamtørring), Konstruktioner","PE",60,0,0]
["Slutdisponering, slam - højteknologisk (slamtørring), Mek/EL","PE",20,0,0]
["Slutdisponering, slam - højteknologisk (slamtørring), SRO","PE",10,0,0]
["Slutdisponering, slam - højteknologisk (slamtørring og -forbrænding), Konstruktioner","PE",60,0,0]
["Slutdisponering, slam - højteknologisk (slamtørring og -forbrænding), Mek/EL","PE",20,0,0]
["Slutdisponering, slam - højteknologisk (slamtørring og -forbrænding), SRO","PE",10,0,0]

{"sheet":"Distributionsanlæg","index":1,"n_rows":322,"n_cols":6,"rows_kept":322,"cut":false,"hidden":false,"merged":[[0,5,1,5],[0,0,1,0],[0,1,1,1],[0,2,1,2],[0,3,1,3],[0,4,1,4]]}
["Distributionsanlæg","Enhed","Standard-levetid","Samlet mængde per 31/12-2014","Samlet mængde per 31/12-2015","Bemærk-ninger"]
[]
["Ledningsnet - Land"]
["Ledningsnet ≤ Ø 200 mm ","meter",75,236934.11000000002,{"$f":"+D4+8380.31","v":245314.42}]
["Ø 200 mm < Ledningsnet ≤ Ø 500 mm ","meter",75,119043.38999999994,{"$f":"+D5+38.22","v":119081.60999999994}]
["Ø 500 mm < Ledningsnet ≤ Ø 800 mm","meter",75,14443.900000000001,{"$f":"+D6","v":14443.900000000001}]
["Ø 800 mm < Ledningsnet ≤ Ø 1000 mm","meter",75,2477.1,{"$f":"+D7","v":2477.1}]
["Ø 1000 mm < Ledningsnet ≤ Ø 1200 mm","meter",75,1527.3,{"$f":"+D8+47","v":1574.3}]
["Ø 1200 mm < Ledningsnet ≤ Ø 1600 mm","meter",75,748.5,{"$f":"+D9","v":748.5}]
["Ledningsnet > Ø 1600 mm (rørbassiner og transportledninger)","meter",75,8.1,8.1]
["Strømpeforing ≤ Ø 200 mm","meter",50,477.6,477.6]
["Strømpeforing Ø 200 mm < Ledningsnet ≤ Ø 500 mm","meter",50,264,264]
["Strømpeforing Ø 500 mm < Ledningsnet ≤ Ø 800 mm","meter",50,0,0]
["Strømpeforing Ø 800 mm < Ledningsnet ≤ Ø 1000 mm","meter",50,0,0]
["Strømpeforing Ø 1000 mm < Ledningsnet ≤ Ø 1200 mm","meter",50,0,0]
["Strømpeforing Ø 1200 mm < Ledningsnet ≤ Ø 1600 mm","meter",50,0,0]
["Ledningsnet - By"]
["Ledningsnet ≤ Ø 200 mm ","meter",75,205323.63,{"$f":"+D18+12118.6","v":217442.23}]
["Ø 200 mm < Ledningsnet ≤ Ø 500 mm ","meter",75,187872.72000000006,{"$f":"+D19+5394.46","v":193267.18000000005}]
["Ø 500 mm < Ledningsnet ≤ Ø 800 mm","meter",75,38119.75,{"$f":"+D20+1914","v":40033.75}]
["Ø 800 mm < Ledningsnet ≤ Ø 1000 mm","meter",75,5723.7000000000016,{"$f":"+D21+690","v":6413.7000000000016}]
["Ø 1000 mm < Ledningsnet ≤ Ø 1200 mm","meter",75,4290.9699999999993,{"$f":"+D22","v":4290.9699999999993}]
["Ø 1200 mm < Ledningsnet ≤ Ø 1600 mm","meter",75,1745.2600000000002,1745.2600000000002]
["Ledningsnet > Ø 1600 mm (rørbassiner og transportledninger)","meter",75,91.850000000000009,91.850000000000009]
["Strømpeforing ≤ Ø 200 mm","meter",50,2647.7,{"$f":"+D25+215.1","v":2862.7999999999997}]
["Strømpeforing Ø 200 mm < Ledningsnet ≤ Ø 500 mm","meter",50,4211.1399999999994,{"$f":"+D26+58","v":4269.1399999999994}]
["Strømpeforing Ø 500 mm < Ledningsnet ≤ Ø 800 mm","meter",50,197.7,{"$f":"+D27","v":197.7}]
["Strømpeforing Ø 800 mm < Ledningsnet ≤ Ø 1000 mm","meter",50,13.1,13.1]
["Strømpeforing Ø 1000 mm < Ledningsnet ≤ Ø 1200 mm","meter",50,0,0]
["Strømpeforing Ø 1200 mm < Ledningsnet ≤ Ø 1600 mm","meter",50,0,0]
["Ledningsnet - City"]
["Ledningsnet ≤ Ø 200 mm ","meter",75,978.00000000000011,{"$f":"+D32","v":978.00000000000011}]
["Ø 200 mm < Ledningsnet ≤ Ø 500 mm ","meter",75,2923.7999999999997,2923.7999999999997]
["Ø 500 mm < Ledningsnet ≤ Ø 800 mm","meter",75,401.5,401.5]
["Ø 800 mm < Ledningsnet ≤ Ø 1000 mm","meter",75,84.8,84.8]
["Ø 1000 mm < Ledningsnet ≤ Ø 1200 mm","meter",75,44,44]
["Ø 1200 mm < Ledningsnet ≤ Ø 1600 mm","meter",75,0,0]
["Ledningsnet > Ø 1600 mm (rørbassiner og transportledninger)","meter",75,0,0]
["Strømpeforing ≤ Ø 200 mm","meter",50,15.7,15.7]
["Strømpeforing Ø 200 mm < Ledningsnet ≤ Ø 500 mm","meter",50,825.9,825.9]
["Strømpeforing Ø 500 mm < Ledningsnet ≤ Ø 800 mm","meter",50,93.2,93.2]
["Strømpeforing Ø 800 mm < Ledningsnet ≤ Ø 1000 mm","meter",50,0,0]
["Strømpeforing Ø 1000 mm < Ledningsnet ≤ Ø 1200 mm","meter",50,0,0]
["Strømpeforing Ø 1200 mm < Ledningsnet ≤ Ø 1600 mm","meter",50,0,0]
["Ledningsnet - Indre city"]
["Ledningsnet ≤ Ø 200 mm ","meter",75,0,{"$f":"+D46","v":0}]
["Ø 200 mm < Ledningsnet ≤ Ø 500 mm ","meter",75,0,0]
["Ø 500 mm < Ledningsnet ≤ Ø 800 mm","meter",75,0,0]
["Ø 800 mm < Ledningsnet ≤ Ø 1000 mm","meter",75,0,0]
["Ø 1000 mm < Ledningsnet ≤ Ø 1200 mm","meter",75,0,0]
["Ø 1200 mm < Ledningsnet ≤ Ø 1600 mm","meter",75,0,0]
["Ledningsnet > Ø 1600 mm (rørbassiner og transportledninger)","meter",75,0,0]
["Strømpeforing ≤ Ø 200 mm","meter",50,0,0]
["Strømpeforing Ø 200 mm < Ledningsnet ≤ Ø 500 mm","meter",50,0,0]
["Strømpeforing Ø 500 mm < Ledningsnet ≤ Ø 800 mm","meter",50,0,0]
["Strømpeforing Ø 800 mm < Ledningsnet ≤ Ø 1000 mm","meter",50,0,0]
["Strømpeforing Ø 1000 mm < Ledningsnet ≤ Ø 1200 mm","meter",50,0,0]
["Strømpeforing Ø 1200 mm < Ledningsnet ≤ Ø 1600 mm","meter",50,0,0]
["Brønde og stik, ledningsnet - Land"]
["Brønde","stk.",75,4397,{"$f":"+D60+20","v":4417}]
["Stik","stk.",75,4241,{"$f":"+D61+2","v":4243}]
["Brønde og stik, ledningsnet - By"]
["Brønde","stk.",75,11473,{"$f":"+D63+989","v":12462}]
["Stik","stk.",75,16182,{"$f":"+D64+252","v":16434}]
["Brønde og stik, ledningsnet - City"]
["Brønde","stk.",75,139,{"$f":"+D66","v":139}]
["Stik","stk.",75,276,276]
["Brønde og stik, ledningsnet - Indre city"]
["Brønde","stk.",75,0,{"$f":"+D69","v":0}]
["Stik","stk.",75,0,0]
["Små pumpestationer inkl. SRO-anlæg - Land"]
["Tryksatte minipumpestationer (husstandssystemer)","stk.",30,{"$f":"57+1+2+5+1+7+1+3+1","v":78},{"$f":"+D72","v":78}]
["Pumpestationer i brønde (< 6,25 m2), Konstruktioner","stk.",50,{"$f":"78+1+1+1+11+1+1+1+1+1+4+1+1+1+2","v":106},106]
["Pumpestationer i brønde (< 6,25 m2), Mek/EL","stk.",20,{"$f":"78+1+3+1+1+1+1+2+11+4+8+1+1+1+1+1+1+1+1+4+1+1+1+2+4+1","v":133},133]
["Pumpestationer i brønde (< 6,25 m2), SRO","stk.",10,{"$f":"78+1+1+1+1+1+1+1+1+9+2+1+4+1+1+1+2+2+16","v":125},125]
["Pumpestationer m. overbygning (< 20 m2), Konstruktioner","stk.",50,{"$f":"11+1","v":12},12]
["Pumpestationer m. overbygning (< 20 m2), Mek/EL","stk.",20,{"$f":"12+1+1+9","v":23},23]
["Pumpestationer m. overbygning (< 20 m2), SRO","stk.",10,12,12]
["Pumpestationer i underjordiske bygværker (<50 m2), Konstruktioner","stk.",50,0,0]
["Pumpestationer i underjordiske bygværker (<50 m2), Mek/El","stk.",20,0,0]
["Pumpestationer i underjordiske bygværker (<50 m2), SRO","stk.",10,0,0]
["Små pumpestationer inkl. SRO-anlæg - By"]
["Tryksatte minipumpestationer (husstandssystemer)","stk.",30,0,{"$f":"+D83","v":0}]
["Pumpestationer i brønde (< 6,25 m2), Konstruktioner","stk.",50,{"$f":"78+1+1+1+1+1+1+1+1+1+1+1+1+1","v":91},91]
["Pumpestationer i brønde (< 6,25 m2), Mek/EL","stk.",20,{"$f":"78+1+1+1+1+16+1+1+1+7+1+1+1+1+25+1+1","v":139},139]
["Pumpestationer i brønde (< 6,25 m2), SRO","stk.",10,{"$f":"78+1+1+1+1+1+1+1+1+1+8+19+1+1+19","v":135},135]
["Pumpestationer m. overbygning (< 20 m2), Konstruktioner","stk.",50,11,11]
["Pumpestationer m. overbygning (< 20 m2), Mek/EL","stk.",20,{"$f":"12+2+1","v":15},15]
["Pumpestationer m. overbygning (< 20 m2), SRO","stk.",10,12,12]
["Pumpestationer i underjordiske bygværker (<50 m2), Konstruktioner","stk.",50,1,1]
["Pumpestationer i underjordiske bygværker (<50 m2), Mek/El","stk.",20,{"$f":"1+39","v":40},40]
["Pumpestationer i underjordiske bygværker (<50 m2), SRO","stk.",10,1,1]
["Små pumpestationer inkl. SRO-anlæg - City"]
["Tryksatte minipumpestationer (husstandssystemer)","stk.",30,3,{"$f":"+D94","v":3}]
["Pumpestationer i brønde (< 6,25 m2), Konstruktioner","stk.",50,0,0]
["Pumpestationer i brønde (< 6,25 m2), Mek/EL","stk.",20,{"$f":"1+1+2+4","v":8},8]
["Pumpestationer i brønde (< 6,25 m2), SRO","stk.",10,{"$f":"2+5","v":7},7]
["Pumpestationer m. overbygning (< 20 m2), Konstruktioner","stk.",50,0,0]
["Pumpestationer m. overbygning (< 20 m2), Mek/EL","stk.",20,1,1]
["Pumpestationer m. overbygning (< 20 m2), SRO","stk.",10,0,0]
["Pumpestationer i underjordiske bygværker (<50 m2), Konstruktioner","stk.",50,0,0]
["Pumpestationer i underjordiske bygværker (<50 m2), Mek/El","stk.",20,0,0]
["Pumpestationer i underjordiske bygværker (<50 m2), SRO","stk.",10,0,0]
["Små pumpestationer inkl. SRO-anlæg - Indre city"]
["Tryksatte minipumpestationer (husstandssystemer)","stk.",30,0,{"$f":"+D105","v":0}]
["Pumpestationer i brønde (< 6,25 m2), Konstruktioner","stk.",50,0,0]
["Pumpestationer i brønde (< 6,25 m2), Mek/EL","stk.",20,{"$f":"1+9","v":10},10]
["Pumpestationer i brønde (< 6,25 m2), SRO","stk.",10,10,10]
["Pumpestationer m. overbygning (< 20 m2), Konstruktioner","stk.",50,1,1]
["Pumpestationer m. overbygning (< 20 m2), Mek/EL","stk.",20,0,0]
["Pumpestationer m. overbygning (< 20 m2), SRO","stk.",10,0,0]
["Pumpestationer i underjordiske bygværker (<50 m2), Konstruktioner","stk.",50,0,0]
["Pumpestationer i underjordiske bygværker (<50 m2), Mek/El","stk.",20,6,6]
["Pumpestationer i underjordiske bygværker (<50 m2), SRO","stk.",10,0,0]
["Store pumpestationer: inkl. SRO-anlæg - Land"]
["Kælder","m2",75,100,{"$f":"+D116","v":100}]
["Pumpeinstallation Miljøklasse A (100-300 l/s) - Mek/EL","stk.",20,3,3]
["Pumpeinstallation Miljøklasse A (100-300 l/s) - SRO","stk.",10,{"$f":"3+1","v":4},4]
["Pumpeinstallation Miljøklasse A (300-600 l/s) - Mek/EL","stk.",20,0,0]
["Pumpeinstallation Miljøklasse A (300-600 l/s) - SRO","stk.",10,0,0]
["Pumpeinstallation Miljøklasse A (600-1.000 l/s) - Mek/EL","stk.",20,0,0]
["Pumpeinstallation Miljøklasse A (600-1.000 l/s) - SRO","stk.",10,0,0]
["Pumpeinstallation Miljøklasse A (1.000-1.500 l/s) - Mek/EL","stk.",20,0,0]
["Pumpeinstallation Miljøklasse A (1.000-1.500 l/s) - SRO","stk.",10,0,0]
["Pumpeinstallation Miljøklasse B (100-300 l/s) - Mek/EL","stk.",20,0,0]
["Pumpeinstallation Miljøklasse B (100-300 l/s) - SRO","stk.",10,0,0]
["Pumpeinstallation Miljøklasse B (300-600 l/s) - Mek/EL","stk.",20,0,0]
["Pumpeinstallation Miljøklasse B (300-600 l/s) - SRO","stk.",10,0,0]
["Pumpeinstallation Miljøklasse B (600-1.000 l/s) - Mek/EL","stk.",20,0,0]
["Pumpeinstallation Miljøklasse B (600-1.000 l/s) - SRO","stk.",10,0,0]
["Pumpeinstallation Miljøklasse B (1.000-1.500 l/s) - Mek/EL","stk.",20,0,0]
["Pumpeinstallation Miljøklasse B (1.000-1.500 l/s) - SRO","stk.",10,0,0]
["Overbygning","m2",75,200,200]
["Store pumpestationer: inkl. SRO-anlæg - By"]
["Kælder","m2",75,0,{"$f":"+D135","v":0}]
["Pumpeinstallation Miljøklasse A (100-300 l/s) - Mek/EL","stk.",20,0,0]
["Pumpeinstallation Miljøklasse A (100-300 l/s) - SRO","stk.",10,0,0]
["Pumpeinstallation Miljøklasse A (300-600 l/s) - Mek/EL","stk.",20,0,0]
["Pumpeinstallation Miljøklasse A (300-600 l/s) - SRO","stk.",10,0,0]
["Pumpeinstallation Miljøklasse A (600-1.000 l/s) - Mek/EL","stk.",20,0,0]
["Pumpeinstallation Miljøklasse A (600-1.000 l/s) - SRO","stk.",10,0,0]
["Pumpeinstallation Miljøklasse A (1.000-1.500 l/s) - Mek/EL","stk.",20,0,0]
["Pumpeinstallation Miljøklasse A (1.000-1.500 l/s) - SRO","stk.",10,0,0]
["Pumpeinstallation Miljøklasse B (100-300 l/s) - Mek/EL","stk.",20,0,0]
["Pumpeinstallation Miljøklasse B (100-300 l/s) - SRO","stk.",10,0,0]
["Pumpeinstallation Miljøklasse B (300-600 l/s) - Mek/EL","stk.",20,0,0]
["Pumpeinstallation Miljøklasse B (300-600 l/s) - SRO","stk.",10,0,0]
["Pumpeinstallation Miljøklasse B (600-1.000 l/s) - Mek/EL","stk.",20,0,0]
["Pumpeinstallation Miljøklasse B (600-1.000 l/s) - SRO","stk.",10,0,0]
["Pumpeinstallation Miljøklasse B (1.000-1.500 l/s) - Mek/EL","stk.",20,0,0]
["Pumpeinstallation Miljøklasse B (1.000-1.500 l/s) - SRO","stk.",10,0,0]
["Overbygning ","m2",75,0,0]
["Store pumpestationer: inkl. SRO-anlæg - City"]
["Kælder","m2",75,0,{"$f":"+D154","v":0}]
["Pumpeinstallation Miljøklasse A (100-300 l/s) - Mek/EL","stk.",20,1,1]
["Pumpeinstallation Miljøklasse A (100-300 l/s) - SRO","stk.",10,0,0]
["Pumpeinstallation Miljøklasse A (300-600 l/s) - Mek/EL","stk.",20,0,0]
["Pumpeinstallation Miljøklasse A (300-600 l/s) - SRO","stk.",10,0,0]
["Pumpeinstallation Miljøklasse A (600-1.000 l/s) - Mek/EL","stk.",20,0,0]
["Pumpeinstallation Miljøklasse A (600-1.000 l/s) - SRO","stk.",10,0,0]
["Pumpeinstallation Miljøklasse A (1.000-1.500 l/s) - Mek/EL","stk.",20,0,0]
["Pumpeinstallation Miljøklasse A (1.000-1.500 l/s) - SRO","stk.",10,0,0]
["Pumpeinstallation Miljøklasse B (100-300 l/s) - Mek/EL","stk.",20,0,0]
["Pumpeinstallation Miljøklasse B (100-300 l/s) - SRO","stk.",10,0,0]
["Pumpeinstallation Miljøklasse B (300-600 l/s) - Mek/EL","stk.",20,0,0]
["Pumpeinstallation Miljøklasse B (300-600 l/s) - SRO","stk.",10,0,0]
["Pumpeinstallation Miljøklasse B (600-1.000 l/s) - Mek/EL","stk.",20,0,0]
["Pumpeinstallation Miljøklasse B (600-1.000 l/s) - SRO","stk.",10,0,0]
["Pumpeinstallation Miljøklasse B (1.000-1.500 l/s) - Mek/EL","stk.",20,0,0]
["Pumpeinstallation Miljøklasse B (1.000-1.500 l/s) - SRO","stk.",10,0,0]
["Overbygning ","m2",75,0,0]
["Store pumpestationer: inkl. SRO-anlæg - Indre city"]
["Kælder","m2",75,0,{"$f":"+D173","v":0}]
["Pumpeinstallation Miljøklasse A (100-300 l/s) - Mek/EL","stk.",20,0,0]
["Pumpeinstallation Miljøklasse A (100-300 l/s) - SRO","stk.",10,0,0]
["Pumpeinstallation Miljøklasse A (300-600 l/s) - Mek/EL","stk.",20,0,0]
["Pumpeinstallation Miljøklasse A (300-600 l/s) - SRO","stk.",10,0,0]
["Pumpeinstallation Miljøklasse A (600-1.000 l/s) - Mek/EL","stk.",20,0,0]
["Pumpeinstallation Miljøklasse A (600-1.000 l/s) - SRO","stk.",10,0,0]
["Pumpeinstallation Miljøklasse A (1.000-1.500 l/s) - Mek/EL","stk.",20,0,0]
["Pumpeinstallation Miljøklasse A (1.000-1.500 l/s) - SRO","stk.",10,0,0]
["Pumpeinstallation Miljøklasse B (100-300 l/s) - Mek/EL","stk.",20,0,0]
["Pumpeinstallation Miljøklasse B (100-300 l/s) - SRO","stk.",10,0,0]
["Pumpeinstallation Miljøklasse B (300-600 l/s) - Mek/EL","stk.",20,0,0]
["Pumpeinstallation Miljøklasse B (300-600 l/s) - SRO","stk.",10,0,0]
["Pumpeinstallation Miljøklasse B (600-1.000 l/s) - Mek/EL","stk.",20,0,0]
["Pumpeinstallation Miljøklasse B (600-1.000 l/s) - SRO","stk.",10,0,0]
["Pumpeinstallation Miljøklasse B (1.000-1.500 l/s) - Mek/EL","stk.",20,0,0]
["Pumpeinstallation Miljøklasse B (1.000-1.500 l/s) - SRO","stk.",10,0,0]
["Overbygning","m2",75,0,0]
["Overløbsbygværker - Land"]
["Kælder (< 7 m2) ","stk.",75,18,{"$f":"+D192","v":18}]
["Kælder (7 - 20 m2) ","m2",75,87,87]
["Kælder (20 - 30 m2)","m2",75,241,241]
["Installationer \"ingen eller faste riste\" (mindre end 7 m2)","stk.",20,31,31]
["Installationer \"mekaniske riste og SRO\" Miljøklasse A. (7-20 m2) - Mek/EL","stk.",20,1,1]
["Installationer \"mekaniske riste og SRO\" Miljøklasse A. (7-20 m2) - SRO","stk.",10,1,1]
["Installationer \"mekaniske riste og SRO\" Miljøklasse A. (20-30 m2) - Mek/EL","stk.",20,0,0]
["Installationer \"mekaniske riste og SRO\" Miljøklasse A. (20-30 m2) - SRO","stk.",10,0,0]
["Installationer \"mekaniske riste og SRO\" Miljøklasse B. (7-20 m2) - Mek/EL","stk.",20,0,0]
["Installationer \"mekaniske riste og SRO\" Miljøklasse B. (7-20 m2) - SRO","stk.",10,0,0]
["Installationer \"mekaniske riste og SRO\" Miljøklasse B. (20-30 m2) - Mek/EL","stk.",20,0,0]
["Installationer \"mekaniske riste og SRO\" Miljøklasse B. (20-30 m2) - SRO","stk.",10,0,0]
["Overbygning","stk.",75,200,200]
["Overløbsbygværker - By"]
["Kælder (< 7 m2) ","stk.",75,12,{"$f":"+D206","v":12}]
["Kælder (7 - 20 m2) ","m2",75,111,111]
["Kælder (20 - 30 m2)","m2",75,227,227]
["Installationer \"ingen eller faste riste\" (mindre end 7 m2)","stk.",20,{"$f":"29+1","v":30},30]
["Installationer \"mekaniske riste og SRO\" Miljøklasse A. (7-20 m2) - Mek/EL","stk.",20,{"$f":"1+1+1","v":3},3]
["Installationer \"mekaniske riste og SRO\" Miljøklasse A. (7-20 m2) - SRO","stk.",10,1,1]
["Installationer \"mekaniske riste og SRO\" Miljøklasse A. (20-30 m2) - Mek/EL","stk.",20,0,0]
["Installationer \"mekaniske riste og SRO\" Miljøklasse A. (20-30 m2) - SRO","stk.",10,0,0]
["Installationer \"mekaniske riste og SRO\" Miljøklasse B. (7-20 m2) - Mek/EL","stk.",20,0,0]
["Installationer \"mekaniske riste og SRO\" Miljøklasse B. (7-20 m2) - SRO","stk.",10,0,0]
["Installationer \"mekaniske riste og SRO\" Miljøklasse B. (20-30 m2) - Mek/EL","stk.",20,0,0]
["Installationer \"mekaniske riste og SRO\" Miljøklasse B. (20-30 m2) - SRO","stk.",10,0,0]
["Overbygning","stk.",75,0,0]
["Overløbsbygværker - City"]
["Kælder (< 7 m2) ","stk.",75,0,0]
["Kælder (7 - 20 m2) ","m2",75,0,0]
["Kælder (20 - 30 m2)","m2",75,0,0]
["Installationer \"ingen eller faste riste\" (mindre end 7 m2)","stk.",20,0,0]
["Installationer \"mekaniske riste og SRO\" Miljøklasse A. (7-20 m2) - Mek/EL","stk.",20,0,0]
["Installationer \"mekaniske riste og SRO\" Miljøklasse A. (7-20 m2) - SRO","stk.",10,0,0]
["Installationer \"mekaniske riste og SRO\" Miljøklasse A. (20-30 m2) - Mek/EL","stk.",20,0,0]
["Installationer \"mekaniske riste og SRO\" Miljøklasse A. (20-30 m2) - SRO","stk.",10,0,0]
["Installationer \"mekaniske riste og SRO\" Miljøklasse B. (7-20 m2) - Mek/EL","stk.",20,0,0]
["Installationer \"mekaniske riste og SRO\" Miljøklasse B. (7-20 m2) - SRO","stk.",10,0,0]
["Installationer \"mekaniske riste og SRO\" Miljøklasse B. (20-30 m2) - Mek/EL","stk.",20,0,0]
["Installationer \"mekaniske riste og SRO\" Miljøklasse B. (20-30 m2) - SRO","stk.",10,0,0]
["Overbygning (efter beliggenhed) ","stk.",75,0,0]
["Overløbsbygværker - Indre city"]
["Kælder (< 7 m2) ","stk.",75,0,0]
["Kælder (7 - 20 m2) ","m2",75,0,0]
["Kælder (20 - 30 m2)","m2",75,0,0]
["Installationer \"ingen eller faste riste\" (mindre end 7 m2)","stk.",20,0,0]
["Installationer \"mekaniske riste og SRO\" Miljøklasse A. (7-20 m2) - Mek/EL","stk.",20,0,0]
["Installationer \"mekaniske riste og SRO\" Miljøklasse A. (7-20 m2) - SRO","stk.",10,0,0]
["Installationer \"mekaniske riste og SRO\" Miljøklasse A. (20-30 m2) - Mek/EL","stk.",20,0,0]
["Installationer \"mekaniske riste og SRO\" Miljøklasse A. (20-30 m2) - SRO","stk.",10,0,0]
["Installationer \"mekaniske riste og SRO\" Miljøklasse B. (7-20 m2) - Mek/EL","stk.",20,0,0]
["Installationer \"mekaniske riste og SRO\" Miljøklasse B. (7-20 m2) - SRO","stk.",10,0,0]
["Installationer \"mekaniske riste og SRO\" Miljøklasse B. (20-30 m2) - Mek/EL","stk.",20,0,0]
["Installationer \"mekaniske riste og SRO\" Miljøklasse B. (20-30 m2) - SRO","stk.",10,0,0]
["Overbygning","stk.",75,0,0]
["Forsinkelsesbassiner - Land"]
["Forsinkelsesbassiner, lukkede uden automatisk rensning og SRO Miljøklasse B (mindre end 1.000 m3)","m³",50,{"$f":"2550+410+996","v":3956},{"$f":"+D248+500","v":4456}]
["Forsinkelsesbassiner, lukkede med automatisk rensning og SRO Miljøklasse A (500-1.000 m3) - Konstruktioner","m³",75,0,{"$f":"+D249","v":0}]
["Forsinkelsesbassiner, lukkede med automatisk rensning og SRO Miljøklasse A (500-1.000 m3) - Mek/EL","m³",20,0,0]
["Forsinkelsesbassiner, lukkede med automatisk rensning og SRO Miljøklasse A (500-1.000 m3) - SRO ","m³",10,0,0]
["Forsinkelsesbassiner, lukkede med automatisk rensning og SRO Miljøklasse A (1.000-3.000 m3) - Konstruktioner","m³",75,8480,8480]
["Forsinkelsesbassiner, lukkede med automatisk rensning og SRO Miljøklasse A (1.000-3.000 m3) - Mek/EL","m³",20,0,0]
["Forsinkelsesbassiner, lukkede med automatisk rensning og SRO Miljøklasse A (1.000-3.000 m3) - SRO","m³",10,0,0]
["Forsinkelsesbassiner, lukkede med automatisk rensning og SRO Miljøklasse A (5.000-10.000 m3) - Konstruktionre","m³",75,0,0]
["Forsinkelsesbassiner, lukkede med automatisk rensning og SRO Miljøklasse A (5.000-10.000 m3) - Mek/EL","m³",20,0,0]
["Forsinkelsesbassiner, lukkede med automatisk rensning og SRO Miljøklasse A (5.000-10.000 m3) - SRO","m³",10,0,0]
["Forsinkelsesbassiner, lukkede med automatisk rensning og SRO Miljøklasse A (større end 10.000 m3) - Konstruktioner","m³",75,0,0]
["Forsinkelsesbassiner, lukkede med automatisk rensning og SRO Miljøklasse A (større end 10.000 m3) - Mek/EL","m³",20,0,0]
["Forsinkelsesbassiner, lukkede med automatisk rensning og SRO Miljøklasse A (større end 10.000 m3) - SRO","m³",10,0,0]
["Forsinkelsesbassiner - By"]
["Forsinkelsesbassiner, lukkede uden automatisk rensning og SRO Miljøklasse B (mindre end 1.000 m3)","m³",50,{"$f":"1685+800","v":2485},{"$f":"+D262","v":2485}]
["Forsinkelsesbassiner, lukkede med automatisk rensning og SRO Miljøklasse A (500-1.000 m3) - Konstruktioner","m³",75,0,0]
["Forsinkelsesbassiner, lukkede med automatisk rensning og SRO Miljøklasse A (500-1.000 m3) - Mek/EL","m³",20,0,0]
["Forsinkelsesbassiner, lukkede med automatisk rensning og SRO Miljøklasse A (500-1.000 m3) - SRO ","m³",10,0,0]
["Forsinkelsesbassiner, lukkede med automatisk rensning og SRO Miljøklasse A (1.000-3.000 m3) - Konstruktioner","m³",75,4576,4576]
["Forsinkelsesbassiner, lukkede med automatisk rensning og SRO Miljøklasse A (1.000-3.000 m3) - Mek/EL","m³",20,0,0]
["Forsinkelsesbassiner, lukkede med automatisk rensning og SRO Miljøklasse A (1.000-3.000 m3) - SRO","m³",10,0,0]
["Forsinkelsesbassiner, lukkede med automatisk rensning og SRO Miljøklasse A (5.000-10.000 m3) - Konstruktionre","m³",75,0,0]
["Forsinkelsesbassiner, lukkede med automatisk rensning og SRO Miljøklasse A (5.000-10.000 m3) - Mek/EL","m³",20,0,0]
["Forsinkelsesbassiner, lukkede med automatisk rensning og SRO Miljøklasse A (5.000-10.000 m3) - SRO","m³",10,0,0]
["Forsinkelsesbassiner, lukkede med automatisk rensning og SRO Miljøklasse A (større end 10.000 m3) - Konstruktioner","m³",75,0,0]
["Forsinkelsesbassiner, lukkede med automatisk rensning og SRO Miljøklasse A (større end 10.000 m3) - Mek/EL","m³",20,0,0]
["Forsinkelsesbassiner, lukkede med automatisk rensning og SRO Miljøklasse A (større end 10.000 m3) - SRO","m³",10,0,0]
["Forsinkelsesbassiner - City"]
["Forsinkelsesbassiner, lukkede uden automatisk rensning og SRO Miljøklasse B (mindre end 1.000 m3)","m³",50,0,{"$f":"+D276","v":0}]
["Forsinkelsesbassiner, lukkede med automatisk rensning og SRO Miljøklasse A (500-1.000 m3) - Konstruktioner","m³",75,0,0]
["Forsinkelsesbassiner, lukkede med automatisk rensning og SRO Miljøklasse A (500-1.000 m3) - Mek/EL","m³",20,0,0]
["Forsinkelsesbassiner, lukkede med automatisk rensning og SRO Miljøklasse A (500-1.000 m3) - SRO ","m³",10,0,0]
["Forsinkelsesbassiner, lukkede med automatisk rensning og SRO Miljøklasse A (1.000-3.000 m3) - Konstruktioner","m³",75,0,0]
["Forsinkelsesbassiner, lukkede med automatisk rensning og SRO Miljøklasse A (1.000-3.000 m3) - Mek/EL","m³",20,0,0]
["Forsinkelsesbassiner, lukkede med automatisk rensning og SRO Miljøklasse A (1.000-3.000 m3) - SRO","m³",10,0,0]
["Forsinkelsesbassiner, lukkede med automatisk rensning og SRO Miljøklasse A (5.000-10.000 m3) - Konstruktionre","m³",75,0,0]
["Forsinkelsesbassiner, lukkede med automatisk rensning og SRO Miljøklasse A (5.000-10.000 m3) - Mek/EL","m³",20,0,0]
["Forsinkelsesbassiner, lukkede med automatisk rensning og SRO Miljøklasse A (5.000-10.000 m3) - SRO","m³",10,0,0]
["Forsinkelsesbassiner, lukkede med automatisk rensning og SRO Miljøklasse A (større end 10.000 m3) - Konstruktioner","m³",75,0,0]
["Forsinkelsesbassiner, lukkede med automatisk rensning og SRO Miljøklasse A (større end 10.000 m3) - Mek/EL","m³",20,0,0]
["Forsinkelsesbassiner, lukkede med automatisk rensning og SRO Miljøklasse A (større end 10.000 m3) - SRO","m³",10,0,0]
["Forsinkelsesbassiner - Indre city"]
["Forsinkelsesbassiner, lukkede uden automatisk rensning og SRO Miljøklasse B (mindre end 1.000 m3)","m³",50,0,{"$f":"+D290","v":0}]
["Forsinkelsesbassiner, lukkede med automatisk rensning og SRO Miljøklasse A (500-1.000 m3) - Konstruktioner","m³",75,0,0]
["Forsinkelsesbassiner, lukkede med automatisk rensning og SRO Miljøklasse A (500-1.000 m3) - Mek/EL","m³",20,0,0]
["Forsinkelsesbassiner, lukkede med automatisk rensning og SRO Miljøklasse A (500-1.000 m3) - SRO ","m³",10,0,0]
["Forsinkelsesbassiner, lukkede med automatisk rensning og SRO Miljøklasse A (1.000-3.000 m3) - Konstruktioner","m³",75,0,0]
["Forsinkelsesbassiner, lukkede med automatisk rensning og SRO Miljøklasse A (1.000-3.000 m3) - Mek/EL","m³",20,0,0]
["Forsinkelsesbassiner, lukkede med automatisk rensning og SRO Miljøklasse A (1.000-3.000 m3) - SRO","m³",10,0,0]
["Forsinkelsesbassiner, lukkede med automatisk rensning og SRO Miljøklasse A (5.000-10.000 m3) - Konstruktionre","m³",75,0,0]
["Forsinkelsesbassiner, lukkede med automatisk rensning og SRO Miljøklasse A (5.000-10.000 m3) - Mek/EL","m³",20,0,0]
["Forsinkelsesbassiner, lukkede med automatisk rensning og SRO Miljøklasse A (5.000-10.000 m3) - SRO","m³",10,0,0]
["Forsinkelsesbassiner, lukkede med automatisk rensning og SRO Miljøklasse A (større end 10.000 m3) - Konstruktioner","m³",75,0,0]
["Forsinkelsesbassiner, lukkede med automatisk rensning og SRO Miljøklasse A (større end 10.000 m3) - Mek/EL","m³",20,0,0]
["Forsinkelsesbassiner, lukkede med automatisk rensning og SRO Miljøklasse A (større end 10.000 m3) - SRO","m³",10,0,0]
["Sparebassin/laguner - Land"]
["Jordbassin Klasse B","m³",50,{"$f":"436+30","v":466},{"$f":"+D304","v":466}]
["Jordbassin Klasse A","m³",50,{"$f":"25465+5300","v":30765},30765]
["Indløb-/udløbsarrangement","stk.",75,54,54]
["Andre bygninger (tekniske installationer, målere mv.)","m2",75,0,0]
["Sparebassin/laguner - By"]
["Jordbassin Klasse B","m³",50,0,{"$f":"+D309","v":0}]
["Jordbassin Klasse A","m³",50,{"$f":"25945+6100+10500","v":42545},42545]
["Indløb-/udløbsarrangement","stk.",75,41,41]
["Andre bygninger (tekniske installationer, målere mv.)","m2",75,0,0]
["Sparebassin/laguner - City"]
["Jordbassin Klasse B","m³",50,0,{"$f":"+D314","v":0}]
["Jordbassin Klasse A","m³",50,0,0]
["Indløb-/udløbsarrangement","stk.",75,1,1]
["Andre bygninger (tekniske installationer, målere mv.)","m2",75,0,0]
["Sparebassin/laguner  - Indre city"]
["Jordbassin Klasse B","m³",50,0,{"$f":"+D319","v":0}]
["Jordbassin Klasse A","m³",50,0,0]
["Indløb-/udløbsarrangement","stk.",75,0,0]
["Andre bygninger (tekniske installationer, målere mv.)","m2",75,0,0]

{"sheet":"Fællesfunktionsanlæg","index":2,"n_rows":16,"n_cols":6,"rows_kept":16,"cut":false,"hidden":false,"merged":[[0,5,1,5],[0,0,1,0],[0,1,1,1],[0,2,1,2],[0,3,1,3],[0,4,1,4]]}
["Fællesfunktionsanlæg","Enhed","Standard-levetid","Samlet mængde per 31/12-2014","Samlet mængde per 31/12-2015","Bemærk-ninger"]
[]
[]
["Andre"]
["Administrationbygninger","m2",75,634,{"$f":"+D5","v":634}]
["Arbejdsplads og kontor","stk.",5,26,{"$f":"+D6+2","v":28}]
["Køretøjer, personbil","stk.",5,2,{"$f":"+D7","v":2}]
["Køretøjer, små lastvogne (< 3.500 kg.)","stk.",5,8,{"$f":"+D8+1","v":9}]
["Køretøjer, store lastvogne (> 3.500 kg.)","stk.",5,2,{"$f":"+D9","v":2}]
["Køretøjer, entreprenørmaskiner","stk.",5,2,{"$f":"+D10","v":2}]
["Slamsugere","stk.",5,0,0]
["Værksteder, garager","m2",75,726,726]
["Øvrige"]
["Solcelleanlæg","KWh",25,0,{"$f":"+D14","v":0}]
["EDB, tablets og navigationsudstyr","stk.",5,0,0]
["Elektroniske kort","stk.",5,0,1]

{"sheet":"Drop downliste","index":3,"n_rows":13,"n_cols":11,"rows_kept":13,"cut":false,"hidden":true,"merged":[]}
[]
[null,"datakvalitet","Serviceselskab","Overheads","Infrastrukturomlægninger","Infrastruktur per år","år 1","år 2","år 3","år 4","år 5"]
[null,null,null,null,null,null,2010,2011,2012,2013,2014]
[null,1,"ja","Full-cost","ja",0.1]
[null,2,"nej","Direct-cost","nej",0.2]
[null,3,null,"Nøgletalsfordeling",null,0.3]
[null,null,null,"Activity based cost",null,0.4]
[null,null,null,"Andet",null,0.5]
[null,null,null,null,null,0.6]
[null,null,null,null,null,0.7]
[null,null,null,null,null,0.8]
[null,null,null,null,null,0.9]
[null,null,null,null,null,1]